Cogmind - Beta 10.1 *** ADVENTURER MODE // 2020.10.04 @ 22:16:38 Player: Wraith Result: Destroyed by as-26019 with Assembled Blade Performance ------------- Evolutions (0) 0 Regions Visited (2) 400 Robots Destroyed (23) 115 Value Destroyed (367) 367 Prototype IDs (0) 0 Alien Tech Used (0) 0 Bonus (0) 0 TOTAL SCORE: 882 Bonus ------- None Cogmind --------- Core Integrity 0/250 Matter 255/300 Energy 100/100 System Corruption 0% Temperature Cool (48) Movement Core (1150) Ox22 Location -10/Mines Parts ------- > --- POWER (1) -------- (None) > --- PROPULSION (2) --- (None) > --- UTILITY (2) ------ High-capacity Storage Unit High-capacity Storage Unit > --- WEAPON (2) ------- Assault Cannon > --- INVENTORY (20) --- Light Treads Light Treads Cooling System Medium Matter Pod (100) Advanced Visual Processing Unit Signal Interpreter Recoil Stabilizer Insulated Plating EM Pulse Gun Heavy EM Pulse Gun Medium Laser Small Laser EM Pulse Cannon Assault Rifle Peak State ------------ > --- POWER ------------ Ion Engine > --- PROPULSION ------- Aluminum Leg Aluminum Leg > --- UTILITY ---------- High-capacity Storage Unit High-capacity Storage Unit > --- WEAPON ----------- Heavy EM Pulse Gun Assault Cannon > --- INVENTORY -------- Light Treads Light Treads Cooling System Medium Matter Pod Advanced Visual Processing Unit Signal Interpreter Recoil Stabilizer Insulated Plating EM Pulse Gun Heavy EM Pulse Gun Medium Laser Small Laser EM Pulse Cannon Assault Rifle [Rating: 12] Favorites ----------- Power Ion Engine Engine Ion Engine Propulsion Aluminum Leg Leg Aluminum Leg Utility High-capacity Storage Unit Storage High-capacity Storage Unit Weapon Assault Rifle Energy Gun Heavy EM Pulse Gun Ballistic Gun Assault Rifle Ballistic Cannon Assault Cannon Build | -11 -10 -10 ------- Run | Scr Mat Min Slots Evolved . | . . . Power . | . . . Propulsion . | . . . Utility . | . . . Weapon . | . . . Parts Attached 14 | 6 3 5 Power 2 | 1 . 1 Engine 2 | 1 . 1 Core . | . . . Reactor . | . . . Propulsion 4 | 2 . 2 Treads . | . . . Leg 4 | 2 . 2 Wheel . | . . . Hover . | . . . Flight . | . . . Utility 3 | 1 2 . Device . | . . . Storage 3 | 1 2 . Processor . | . . . Hackware . | . . . Protection . | . . . Artifact . | . . . Weapon 5 | 2 1 2 Energy Gun 3 | 1 1 1 Energy Cannon . | . . . Ballistic Gun 1 | 1 . . Ballistic Cannon 1 | . . 1 Launcher . | . . . Special Weapon . | . . . Impact Weapon . | . . . Slashing Weapon . | . . . Piercing Weapon . | . . . Special Melee Weapon . | . . . Unidentified Prototypes . | . . . Parts Lost 3 | . . 3 Power 1 | . . 1 Propulsion 1 | . . 1 Utility . | . . . Weapon 1 | . . 1 Highest Loss Streak 3 | . . 3 Average Slot Usage (%) 98 | . 99 98 Engine 14 | . 14 14 Leg 27 | . 28 27 Storage 27 | . 27 28 Energy Gun 13 | . 14 13 Ballistic Gun 12 | . 14 6 Ballistic Cannon 1 | . . 7 Naked Turns . | . . . Heaviest Build 77 | 13 74 77 Greatest Support 20 | 20 20 20 Greatest Overweight (x) 7 | 1 3 7 Average Overweight (x) 2 | . 2 3 Largest Inventory Capacity 20 | 6 20 20 Average Capacity 18 | 4 19 20 Most Carried 16 | 4 10 16 Average Carried 8 | 2 7 13 Final Capacity 20 | 6 20 20 Final Carried 14 | 3 10 14 Class Distribution -------------------- 90% | Hauler-Mutant 9% | Mutant Dominant Class ---------------- Hauler-Mutant | -10/Materials Hauler-Mutant | -10/Mines Resources | -11 -10 -10 ----------- Run | Scr Mat Min Matter Collected 523 | 215 241 67 Remotely . | . . . Salvage Created 684 | . 394 290 Parts 36 | . 27 9 Haulers Intercepted . | . . . Recyclers Shooed . | . . . Parts Field Recycled . | . . . Retrieved Matter . | . . . Parts Self-Destructed . | . . . Prevented . | . . . Kills | -11 -10 -10 ------- Run | Scr Mat Min Combat Hostiles Destroyed 17 | . 8 9 Guns 15 | . 8 7 Cannons 2 | . . 2 Classes Destroyed 6 | . 4 2 Worker 1 | . . 1 Recycler 2 | . 2 . Watcher 3 | . 3 . Swarmer 9 | . 6 3 Grunt 5 | . 2 3 Assembled 3 | . . 3 Best Kill Streak 5 | . 5 5 Combat Bots Only 4 | . 3 4 Max Kills in Single Turn 2 | . 2 1 Gunslinging 1 | . 1 . Exploded . | . . . Melee . | . . . Uniques/NPCs Destroyed . | . . . Combat | -11 -10 -10 -------- Run | Scr Mat Min Damage Taken 944 | . 178 766 Core 264 | . 42 222 Absorbed by Shields . | . . . Core Remaining (%) 100 | 100 . . Volleys Fired 43 | . 22 21 Largest 2 | . 2 2 Hottest 90 | . 70 90 Shots Fired 82 | . 44 38 Gun 72 | . 44 28 Cannon 10 | . . 10 Launcher . | . . . Special . | . . . Kinetic 41 | . 22 19 Thermal 8 | . 8 . Explosive . | . . . Electromagnetic 33 | . 14 19 Robot Hit Streak 16 | . 16 10 Robot Miss Streak 4 | . 4 3 Penetration Max . | . . . Secondary Targets 5 | . 2 3 Max Gunslinging Chain 1 | . 1 1 Shots Hit Robots 57 | . 32 25 Core Hits 29 | . 16 13 Critical Hits . | . . . Critical Kills . | . . . Critical Parts Destroyed . | . . . Melee Attacks . | . . . Impact . | . . . Slashing . | . . . Piercing . | . . . Sneak Attacks . | . . . Combat Hostiles . | . . . Follow-up Attacks . | . . . Damage Inflicted 1133 | . 505 628 Guns 815 | . 480 335 Cannons 75 | . . 75 Explosions 243 | . 25 218 Melee . | . . . Ramming . | . . . Kinetic 351 | . 192 159 Thermal 330 | . 112 218 Explosive . | . . . Electromagnetic 452 | . 201 251 Impact . | . . . Slashing . | . . . Piercing . | . . . Highest Corruption . | . . . Average Corruption . | . . . Corruption Purged . | . . . Overload Shots . | . . . Overflow Damage 52 | . . 52 Projectiles . | . . . Explosions 52 | . . 52 Melee . | . . . Knockbacks 1 | . . 1 Impact . | . . . Kinetic 1 | . . 1 Secondary . | . . . Self-Inflicted Damage 44 | . . 44 Shots 1 | . . 1 Rammed . | . . . Targets Rammed . | . . . Kicked . | . . . Crushed . | . . . Highest Temperature 140 | . 66 140 Average Temperature 34 | . 16 50 Received Heat Transfer 251 | . 48 203 Siege Activations . | . . . Robots Corrupted . | . . . Combat Hostiles . | . . . Parts Fried 2 | . 1 1 Impact Corruptions . | . . . Robots Melted . | . . . Combat Hostiles . | . . . Parts Melted . | . . . Heat Transferred 559 | . 309 250 Parts Sabotaged . | . . . Parts Stolen . | . . . Parts Stripped . | . . . Power Chain Reactions 1 | . 1 . Missiles Intercepted . | . . . Alert | -11 -10 -10 ------- Run | Scr Mat Min Peak Influence 169 | . 146 169 Initial . | . . . Average 56 | . 46 99 Maximum Alert Level . | . . . Low Security (%) 100 | 100 100 100 Level 1 . | . . . Level 2 . | . . . Level 3 . | . . . Level 4 . | . . . Level 5 . | . . . High Security . | . . . Max Security . | . . . Squads Dispatched 2 | . 1 1 Investigation 2 | . 1 1 Extermination . | . . . Reinforcement . | . . . Assault . | . . . Garrison . | . . . Intercept . | . . . Construction Impeded . | . . . Haulers Reinforced . | . . . Stealth | -11 -10 -10 --------- Run | Scr Mat Min Distress Signals . | . . . Communications Jammed . | . . . Distress Signals . | . . . Times Spotted 34 | . 12 22 Peak Tracking Total 10 | . 4 10 Tactical Retreats 2 | . . 2 Traps | -11 -10 -10 ------- Run | Scr Mat Min Traps Triggered . | . . . Indirectly . | . . . Trap Hack Attempts . | . . . Triggered . | . . . Disarmed 4 | . 4 . Reprogrammed . | . . . Reused . | . . . Traps Extracted . | . . . Installed . | . . . Triggered . | . . . Machines | -11 -10 -10 ---------- Run | Scr Mat Min Machines Disabled 2 | . . 2 Max in Single Turn 1 | . . 1 Machines Sabotaged . | . . . Garrisons Compromised . | . . . Overloaded Fab Kills . | . . . Fab Network Shutdowns . | . . . Hacking | -11 -10 -10 --------- Run | Scr Mat Min Machines Accessed 7 | . 6 1 Terminals 5 | . 5 . Fabricators . | . . . Repair Stations . | . . . Recycling Units 1 | . 1 . Scanalyzers . | . . . Garrison Access . | . . . Total Hacks 18 | . 17 1 Successful 10 | . 9 1 Failed 8 | . 8 . Catastrophic . | . . . Database Lockouts . | . . . Manual . | . . . Terminals 14 | . 14 . Fabricators . | . . . Repair Stations . | . . . Recycling Units 3 | . 3 . Scanalyzers . | . . . Garrison Access . | . . . Terminal Hacks 9 | . 8 1 Record 2 | . 2 . Open Door 1 | . . 1 Disarm Traps 1 | . 1 . Maintenance Status 1 | . 1 . Investigation Status 1 | . 1 . Hauler Manifests 2 | . 2 . Registered Components 1 | . 1 . Fabricator Hacks . | . . . Repair Station Hacks . | . . . Recycling Unit Hacks 1 | . 1 . Report Inventory 1 | . 1 . Scanalyzer . | . . . Garrison Access Hacks . | . . . Unauthorized Hacks . | . . . Terminals . | . . . Fabricators . | . . . Repair Stations . | . . . Recycling Units . | . . . Scanalyzers . | . . . Garrison Access . | . . . Data Cores Recovered . | . . . Used . | . . . Hacking Detections 5 | . 5 . Full Trace Events 1 | . 1 . Feedback Events . | . . . Feedback Blocked . | . . . Robot Schematics Acquired . | . . . Robots Built . | . . . Matter . | . . . Time . | . . . Total Robot Build Rating . | . . . Part Schematics Acquired . | . . . Parts Built . | . . . Matter . | . . . Time . | . . . Total Part Build Rating . | . . . Parts Repaired . | . . . Time . | . . . Parts Recycled . | . . . Recycled Matter . | . . . Retrieved Matter . | . . . Retrieved Components . | . . . Parts Scanalyzed . | . . . Part Schematics Acquired . | . . . Parts Damaged . | . . . Bothacking | -11 -10 -10 ------------ Run | Scr Mat Min Used RIF Installer . | . . . Robots Hacked . | . . . Non-combat . | . . . Combat . | . . . Robot Hacks Applied . | . . . Relay Couplers Released . | . . . Robots Rewired . | . . . Allies Hacked . | . . . Hacks Repelled . | . . . Allies | -11 -10 -10 -------- Run | Scr Mat Min Total Allies . | . . . Largest Group . | . . . Highest-Rated Group . | . . . Highest-Rated Ally . | . . . Total Orders . | . . . Ally Attacks . | . . . Total Damage . | . . . Kills . | . . . Allies Corrupted . | . . . Allies Melted . | . . . Intel | -11 -10 -10 ------- Run | Scr Mat Min Robot Analysis Total . | . . . Derelict Logs Recovered 1 | . . 1 Drone Launches . | . . . Drone Recoveries . | . . . Exploration | -11 -10 -10 ------------- Run | Scr Mat Min Turns Passed 1672 | 80 1211 381 Spaces Moved 777 | 65 566 146 Core 25 | 25 . . Treads . | . . . Legs 752 | 40 566 146 Wheels . | . . . Hover . | . . . Flight . | . . . Fastest Speed 50 | 50 120 210 Average Speed 193 | 99 199 210 Slowest Speed 330 | 120 210 330 Overloaded Moves . | . . . Propulsion Burnouts . | . . . Robots Hopped . | . . . Cave-ins Triggered . | . . . Exploration Rate (%) 38 | 3 82 30 Regions Visited 2 Branch Regions 1 Pre-discovered Areas 1 | . . 1 Known Exits Taken . | . . . Unknown Exits Taken 2 | 1 1 . Scrap Searched . | . . . Spaces Dug . | . . . Terrain Destroyed 12 | . 2 10 Melee . | . . . Projectile 2 | . . 2 AOE 10 | . 2 8 Terrain Rammed . | . . . Walls Destroyed . | . . . Machines Disabled . | . . . Actions | -11 -10 -10 --------- Run | Scr Mat Min Total 865 | 80 603 182 Wait 4 | . 4 . Move 775 | 64 565 146 Hop . | . . . Pick Up 24 | 9 8 7 Fast Attach 2 | 1 1 . Attach 8 | 5 1 2 Detach . | . . . Swap 4 | . 1 3 Drop 5 | 1 1 3 Fire 43 | . 22 21 Melee . | . . . Ram . | . . . Kick . | . . . Crush . | . . . Escape Stasis . | . . . Rewire . | . . . Trap . | . . . Miscellaneous . | . . . Route ------- -11/Scrapyard -10/Materials (discovered 5 exits: [*Mat x3] / *Min x2) -10/Mines History --------- Turn | Location | Event 2 | -11/Scrapyard | Met Revision 17 19 | -11/Scrapyard | Discovered new exit (range 15) 81 | -11/Scrapyard | Entered Materials 473 | -10/Materials | Build established: Hauler-Mutant 537 | -10/Materials | Discovered new exit (range 4) 807 | -10/Materials | Discovered new exit (range 12) 859 | -10/Materials | Discovered new exit (range 13) 1076 | -10/Materials | Discovered new exit (range 7) 1279 | -10/Materials | Discovered new exit (range 7) 1292 | -10/Materials | Entered Mines 1319 | -10/Mines | Met a Derelict shopkeep closing up shop 1407 | -10/Mines | Learned location of Storage (-8) 1569 | -10/Mines | Found a damaged Exp. Sensor Array with a note attached 1633 | -10/Mines | Assembled infested the area 1659 | -10/Mines | Core integrity fell below 50% 1672 | -10/Mines | Core integrity fell below 20% 1673 | -10/Mines | Destroyed by as-26019 with Assembled Blade Last Messages --------------- 01633_ ALERT: Infestation in the mines, dispatching Demolisher response squad. 01646_ as-38796 destroyed. 01646_ Knocked back. 01649_ as-73162 destroyed. 01654_ as-41134 destroyed. 01655_ K-01 Serf cleans the Plasma Injector. 01656_ Hvy. EM Pulse Gun destroyed. 01657_ as-49438 knocked back. 01660_ as-26780 sneak attacks. 01660_ K-01 Serf system corrupted by crushing effect. 01666_ Aluminum Leg severed. 01667_ Aluminum Leg destroyed. 01670_ Ion Engine destroyed. 01672_ C-30 ARC bursts open, deploying its payload. 01672_ D-53 Grenadier unfolds itself. 01672_ Plasma Injector explodes. 01672_ Destroyed Asb. Hover Unit. 01672_ Destroyed Asb. Blade. 01672_ Destroyed Asb. Hover Unit. Map ----- +----------------------------------------------------+ | ??????????????????????????????????????????????# | | ???????????????????????????????????????####???# # | | ??????????????????????????????????????## ##### # | | ?????????????????????????????????###### # # | | ??????????????????????????###????# ? # # | | ?????????????????????????## ##?# #??# ## #### | | ????????????????????????## ## #### ## #??? | | ?????????????????????# =% %% = % #??? | | ?????????????????????# *% %= % ###? | | ?????????????????????######### #### ## !%## | | ?????????????????????????????###???# ### | | ???????????????????????????????????# #?## # | | ?????????????????????????????##????# #??# # | | ????????????????????????????# ???? #??## | | ????????????????????????????# #????###???# | | ????????????????????????????# #?????????## | | ????????????????????????????# #?????????# ! | | ????????????????????????????# #?????????# | | ????????????????????????????# #?????????# # | | ??????????????????????####### #????????## ## | | ???????????????######## #;# ########## ##? | | ???????????????# d ##?? | | ?????????????????### # d #??? | | ?????????????????????## ##### #??? | | ??????????????????????#; a;#???## ##??? | | ???????????????????????#;@a ;#????# ##???? | | ???????????????????????#;aa #????## ##????? | | ???????????????????????#;; #?????## ##?????? | | ???????????????????????###a ;#?????#####??????? | | ?????????????????????????#a ###????????????????? | | ?????????????????????????# ###??????????????????? | | ?????????????????????????# #????????????????????? | | ?????????????????????????# a#????????????????????? | | ?????????????????????????# %#????????????????????? | | ?????????????????????????#%%#????????????????????? | | ?????????????????????????# ????????????????????? | | ?????????????????????????# ????????????????????? | | ?????????????????????????#"###???????????????????? | | ?????????????????????????###?????????????????????? | | ?????????????????????????????????????????????????? | | ?????????????????????????????????????????????????? | | ?????????????????????????????????????????????????? | | ?????????????????????????????????????????????????? | | ?????????????????????????????????????????????????? | | ?????????????????????????????????????????????????? | | ?????????????????????????????????????????????????? | | ?????????????????????????????????????????????????? | | ?????????????????????????????????????????????????? | | ?????????????????????????????????????????????????? | | ?????????????????????????????????????????????????? | +----------------------------------------------------+ Best States ------------- Heat Dissipation 25 Energy Generation 10 Energy Capacity 250 Matter Stores 300 Matter Capacity 300 Sight Range 16 Terrain Scan Density 10 Resistance: KI 20 Resistance: TH 20 Resistance: EX 20 Resistance: EM 20 Resistance: I 20 Resistance: S 20 Resistance: P 20 Evasion (%) 40 Offensive Hacking 10 Item Schematics ----------------- None Robot Schematics ------------------ None Fabricated ------------ Nothing Alien Tech Used ----------------- None Achievements -------------- None Challenges ------------ None Game ------ Seed RiotChainBay Manual? 0 Play Time 00:23:44 Cumulative 4.0 hours Start 2020.10.04 @ 14:42:40 End 2020.10.04 @ 22:16:38 Sessions 6 Manual Loads 0 Difficulty Adventurer Special Mode None Game No. 4 Rogue 0 Adventurer 4 Explorer 0 Win Type - Total 0 Types 0/0/0/0/0/0/0/0/0 Lore% 1 Gallery% 7 Achievement% 7 Wizard Run 0 Options --------- ASCII 0 Keyboard 0 Movement Arrows Keybinds 0 Fullscreen 1 Font 18/SmallcapsGlow Map View 76x50 Tactical HUD 1 Map Filters NONE Filters NONE Steam 1 RUN: 7eeb4c9a-39ea-4b60-b08f-a57876576812